[Event "December 5 Early 2023"]
[Site "https://www.chess.com"]
[Date "2023.12.05"]
[Round "10"]
[White "Zemlyanskii, Ivan"]
[Black "Sychev, Klementy"]
[Result "1-0"]
[Board "10"]
[TimeControl "180+1"]
[WhiteFideId "24249971"]
[BlackFideId "4114060"]
[WhiteElo "3019"]
[BlackElo "2911"]
[WhiteTeam "RUS"]
[BlackTeam "FID"]
[WhiteClock "0:00:08"]
[BlackClock "0:00:00"]

1. d4 {[%clk 0:03:00]}  d5 {[%clk 0:02:54]} 2. c4 {[%clk 0:03:00]}  dxc4 {[%clk 0:02:54]} 3. e3 {[%clk 0:03:00]}  Nf6 {[%clk 0:02:54]} 4. Bxc4 {[%clk 0:02:59]}  e6 {[%clk 0:02:55]} 5. Nf3 {[%clk 0:03:00]}  a6 {[%clk 0:02:55]} 6. a4 {[%clk 0:02:58]}  Nbd7 {[%clk 0:02:55]} 7. O-O {[%clk 0:02:56]}  c5 {[%clk 0:02:54]} 8. Nc3 {[%clk 0:02:57]}  Qc7 {[%clk 0:02:47]} 9. Qe2 {[%clk 0:02:57]}  Bd6 {[%clk 0:02:46]} 10. dxc5 {[%clk 0:02:42]}  Qxc5 {[%clk 0:02:29]} 11. Bd3 {[%clk 0:02:32]}  O-O {[%clk 0:02:16]} 12. Bd2 {[%clk 0:02:23]}  Qh5 {[%clk 0:01:40]} 13. h3 {[%clk 0:02:06]}  b6 {[%clk 0:01:32]} 14. Ne4 {[%clk 0:02:01]}  Nxe4 {[%clk 0:01:22]} 15. Bxe4 {[%clk 0:02:02]}  Ra7 {[%clk 0:01:19]} 16. Rfd1 {[%clk 0:01:47]}  Nf6 {[%clk 0:01:07]} 17. Bc2 {[%clk 0:01:42]}  Bb7 {[%clk 0:00:59]} 18. Bc3 {[%clk 0:01:30]}  Nd5 {[%clk 0:00:56]} 19. Be1 {[%clk 0:01:13]}  Raa8 {[%clk 0:00:50]} 20. Rac1 {[%clk 0:01:11]}  Rfd8 {[%clk 0:00:45]} 21. Rd4 {[%clk 0:01:04]}  Nf6 {[%clk 0:00:38]} 22. Rcd1 {[%clk 0:01:02]}  Be7 {[%clk 0:00:19]} 23. Rxd8+ {[%clk 0:00:33]}  Rxd8 {[%clk 0:00:18]} 24. Rxd8+ {[%clk 0:00:34]}  Bxd8 {[%clk 0:00:19]} 25. Bd3 {[%clk 0:00:34]}  a5 {[%clk 0:00:16]} 26. Bc3 {[%clk 0:00:23]}  Be7 {[%clk 0:00:13]} 27. Qd1 {[%clk 0:00:12]}  Nd5 {[%clk 0:00:11]} 28. Bd4 {[%clk 0:00:12]}  f6 {[%clk 0:00:05]} 29. Qb3 {[%clk 0:00:09]}  Kf7 {[%clk 0:00:04]} 30. Bc4 {[%clk 0:00:06]}  Bb4 {[%clk 0:00:03]} 31. Bc3 {[%clk 0:00:04]}  Nxc3 {[%clk 0:00:02]} 32. bxc3 {[%clk 0:00:05]}  Bc5 {[%clk 0:00:03]} 33. Bxe6+ {[%clk 0:00:05]}  Ke7 {[%clk 0:00:03]} 34. Bg4 {[%clk 0:00:05]}  Qd5 {[%clk 0:00:02]} 35. Qc2 {[%clk 0:00:05]}  Qe4 {[%clk 0:00:03]} 36. Qa2 {[%clk 0:00:02]}  Bd5 {[%clk 0:00:02]} 37. Qa1 {[%clk 0:00:03]}  f5 {[%clk 0:00:02]} 38. Bh5 {[%clk 0:00:01]}  g6 {[%clk 0:00:03]} 39. c4 {[%clk 0:00:02]}  gxh5 {[%clk 0:00:02]} 40. cxd5 {[%clk 0:00:02]}  Qxd5 {[%clk 0:00:03]} 41. Qg7+ {[%clk 0:00:03]}  Qf7 {[%clk 0:00:03]} 42. Qe5+ {[%clk 0:00:03]}  Qe6 {[%clk 0:00:03]} 43. Qg7+ {[%clk 0:00:03]}  Qf7 {[%clk 0:00:04]} 44. Qg5+ {[%clk 0:00:04]}  Kd6 {[%clk 0:00:03]} 45. Qf4+ {[%clk 0:00:04]}  Ke7 {[%clk 0:00:02]} 46. Nh4 {[%clk 0:00:03]}  Ke6 {[%clk 0:00:02]} 47. Qc4+ {[%clk 0:00:03]}  Kf6 {[%clk 0:00:02]} 48. Qc3+ {[%clk 0:00:03]}  Ke6 {[%clk 0:00:01]} 49. Qb3+ {[%clk 0:00:03]}  Kf6 {[%clk 0:00:02]} 50. Qb2+ {[%clk 0:00:04]}  Ke6 {[%clk 0:00:02]} 51. Nf3 {[%clk 0:00:04]}  Qf6 {[%clk 0:00:02]} 52. Qb3+ {[%clk 0:00:04]}  Ke7 {[%clk 0:00:03]} 53. Qg8 {[%clk 0:00:03]}  Qf7 {[%clk 0:00:02]} 54. Qg5+ {[%clk 0:00:03]}  Kf8 {[%clk 0:00:03]} 55. g3 {[%clk 0:00:02]}  Be7 {[%clk 0:00:02]} 56. Qh6+ {[%clk 0:00:02]}  Kg8 {[%clk 0:00:02]} 57. Qxb6 {[%clk 0:00:03]}  Bb4 {[%clk 0:00:01]} 58. Qb8+ {[%clk 0:00:03]}  Kg7 {[%clk 0:00:01]} 59. Qe5+ {[%clk 0:00:04]}  Qf6 {[%clk 0:00:01]} 60. Qxf6+ {[%clk 0:00:03]}  Kxf6 {[%clk 0:00:02]} 61. Kf1 {[%clk 0:00:04]}  h6 {[%clk 0:00:02]} 62. Ke2 {[%clk 0:00:04]}  Ke6 {[%clk 0:00:02]} 63. Nd4+ {[%clk 0:00:04]}  Kf6 {[%clk 0:00:02]} 64. Nc6 {[%clk 0:00:03]}  Bc3 {[%clk 0:00:02]} 65. Kd3 {[%clk 0:00:03]}  Be1 {[%clk 0:00:02]} 66. Ke2 {[%clk 0:00:03]}  Bc3 {[%clk 0:00:03]} 67. f3 {[%clk 0:00:02]}  Kg5 {[%clk 0:00:03]} 68. h4+ {[%clk 0:00:02]}  Kf6 {[%clk 0:00:03]} 69. Nd4 {[%clk 0:00:02]}  Bb4 {[%clk 0:00:03]} 70. Nc2 {[%clk 0:00:02]}  Bc5 {[%clk 0:00:03]} 71. Kd3 {[%clk 0:00:03]}  Bd6 {[%clk 0:00:03]} 72. f4 {[%clk 0:00:03]}  Ke6 {[%clk 0:00:02]} 73. Nd4+ {[%clk 0:00:03]}  Kf6 {[%clk 0:00:03]} 74. Nc6 {[%clk 0:00:04]}  Bc7 {[%clk 0:00:02]} 75. Kc4 {[%clk 0:00:04]}  Bb6 {[%clk 0:00:03]} 76. Nd4 {[%clk 0:00:05]}  Bd8 {[%clk 0:00:03]} 77. Kb5 {[%clk 0:00:05]}  Bc7 {[%clk 0:00:03]} 78. Nc6 {[%clk 0:00:05]}  Ke6 {[%clk 0:00:03]} 79. Nxa5 {[%clk 0:00:06]}  Kd5 {[%clk 0:00:04]} 80. Nc4 {[%clk 0:00:06]}  Ke4 {[%clk 0:00:04]} 81. a5 {[%clk 0:00:07]}  Kf3 {[%clk 0:00:05]} 82. a6 {[%clk 0:00:07]}  Bb8 {[%clk 0:00:05]} 83. Kb6 {[%clk 0:00:08]}  Kxg3 {[%clk 0:00:00]} 84. Kb7 {[%clk 0:00:08]} 1-0

[Event "December 5 Early 2023"]
[Site "https://www.chess.com"]
[Date "2023.12.05"]
[Round "10"]
[White "Xiong, Jeffery"]
[Black "Popov, Konstantin"]
[Result "1-0"]
[Board "11"]
[TimeControl "180+1"]
[WhiteFideId "2047640"]
[BlackFideId "34137910"]
[WhiteElo "3005"]
[BlackElo "2894"]
[WhiteTeam "USA"]
[BlackTeam "FID"]
[WhiteClock "0:01:17"]
[BlackClock "0:00:09"]

1. d4 {[%clk 0:02:53]}  Nf6 {[%clk 0:02:59]} 2. c4 {[%clk 0:02:52]}  e6 {[%clk 0:03:00]} 3. Nc3 {[%clk 0:02:53]}  Bb4 {[%clk 0:03:00]} 4. Nf3 {[%clk 0:02:53]}  O-O {[%clk 0:02:59]} 5. Bg5 {[%clk 0:02:53]}  d6 {[%clk 0:02:54]} 6. e3 {[%clk 0:02:44]}  Nbd7 {[%clk 0:02:53]} 7. Bd3 {[%clk 0:02:44]}  e5 {[%clk 0:02:53]} 8. O-O {[%clk 0:02:26]}  h6 {[%clk 0:02:44]} 9. Bxf6 {[%clk 0:02:26]}  Nxf6 {[%clk 0:02:43]} 10. dxe5 {[%clk 0:02:25]}  Bxc3 {[%clk 0:02:42]} 11. bxc3 {[%clk 0:02:24]}  dxe5 {[%clk 0:02:41]} 12. Nxe5 {[%clk 0:02:22]}  Qd6 {[%clk 0:02:35]} 13. Nf3 {[%clk 0:02:21]}  Rd8 {[%clk 0:02:33]} 14. Be2 {[%clk 0:02:21]}  Qe7 {[%clk 0:02:31]} 15. Qc2 {[%clk 0:02:21]}  c5 {[%clk 0:02:26]} 16. a4 {[%clk 0:02:19]}  Ne4 {[%clk 0:02:23]} 17. Rfd1 {[%clk 0:02:17]}  Bf5 {[%clk 0:02:22]} 18. Qb2 {[%clk 0:02:16]}  Re8 {[%clk 0:02:20]} 19. Bd3 {[%clk 0:02:14]}  Rad8 {[%clk 0:02:16]} 20. Bxe4 {[%clk 0:02:14]}  Bxe4 {[%clk 0:02:16]} 21. Ne1 {[%clk 0:02:14]}  Qe6 {[%clk 0:02:13]} 22. f3 {[%clk 0:02:14]}  Bc6 {[%clk 0:02:09]} 23. e4 {[%clk 0:02:12]}  Qxc4 {[%clk 0:02:07]} 24. a5 {[%clk 0:02:12]}  Bb5 {[%clk 0:01:59]} 25. Nc2 {[%clk 0:02:09]}  Qe2 {[%clk 0:01:40]} 26. Re1 {[%clk 0:02:08]}  Qd2 {[%clk 0:01:40]} 27. Rad1 {[%clk 0:02:02]}  Qxd1 {[%clk 0:01:39]} 28. Rxd1 {[%clk 0:02:03]}  Rxd1+ {[%clk 0:01:40]} 29. Kf2 {[%clk 0:02:03]}  Rd2+ {[%clk 0:01:35]} 30. Kg3 {[%clk 0:01:59]}  Bd3 {[%clk 0:01:14]} 31. Qxb7 {[%clk 0:01:59]}  Bxc2 {[%clk 0:01:07]} 32. Qxa7 {[%clk 0:01:59]}  Bd3 {[%clk 0:01:04]} 33. Qxc5 {[%clk 0:01:55]}  Bf1 {[%clk 0:01:03]} 34. h4 {[%clk 0:01:55]}  Rxg2+ {[%clk 0:01:00]} 35. Kf4 {[%clk 0:01:55]}  Ra2 {[%clk 0:00:56]} 36. Qd5 {[%clk 0:01:32]}  Rg2 {[%clk 0:00:53]} 37. c4 {[%clk 0:01:31]}  Re6 {[%clk 0:00:50]} 38. c5 {[%clk 0:01:28]}  g5+ {[%clk 0:00:42]} 39. hxg5 {[%clk 0:01:28]}  hxg5+ {[%clk 0:00:43]} 40. Ke3 {[%clk 0:01:29]}  Re2+ {[%clk 0:00:43]} 41. Kd3 {[%clk 0:01:30]}  R2xe4+ {[%clk 0:00:40]} 42. Kd2 {[%clk 0:01:29]}  Re2+ {[%clk 0:00:37]} 43. Kc1 {[%clk 0:01:29]}  R2e5 {[%clk 0:00:34]} 44. Qd4 {[%clk 0:01:27]}  Rf5 {[%clk 0:00:28]} 45. Kd2 {[%clk 0:01:24]}  Bb5 {[%clk 0:00:20]} 46. Qb4 {[%clk 0:01:23]}  Bc6 {[%clk 0:00:17]} 47. a6 {[%clk 0:01:24]}  Bxf3 {[%clk 0:00:17]} 48. a7 {[%clk 0:01:24]}  Kg7 {[%clk 0:00:17]} 49. Qc3+ {[%clk 0:01:22]}  Ref6 {[%clk 0:00:13]} 50. Qxf3 {[%clk 0:01:23]}  Rxf3 {[%clk 0:00:14]} 51. a8=Q {[%clk 0:01:23]}  R3f5 {[%clk 0:00:14]} 52. Qc8 {[%clk 0:01:22]}  Re6 {[%clk 0:00:13]} 53. Kd3 {[%clk 0:01:20]}  Rd5+ {[%clk 0:00:12]} 54. Kc4 {[%clk 0:01:20]}  Ree5 {[%clk 0:00:13]} 55. c6 {[%clk 0:01:19]}  Rc5+ {[%clk 0:00:12]} 56. Kb4 {[%clk 0:01:20]}  Rb5+ {[%clk 0:00:13]} 57. Ka4 {[%clk 0:01:20]}  Rbc5 {[%clk 0:00:11]} 58. Kb4 {[%clk 0:01:21]}  Rc1 {[%clk 0:00:10]} 59. Qd7 {[%clk 0:01:14]}  Rec5 {[%clk 0:00:09]} 60. Qd4+ {[%clk 0:01:14]}  Kf8 {[%clk 0:00:07]} 61. Qxc5+ {[%clk 0:01:14]}  Rxc5 {[%clk 0:00:08]} 62. Kxc5 {[%clk 0:01:15]}  Ke7 {[%clk 0:00:08]} 63. Kb6 {[%clk 0:01:16]}  g4 {[%clk 0:00:09]} 64. c7 {[%clk 0:01:16]}  g3 {[%clk 0:00:10]} 65. c8=Q {[%clk 0:01:17]}  g2 {[%clk 0:00:09]} 66. Qg4 {[%clk 0:01:17]} 1-0

[Event "December 5 Early 2023"]
[Site "https://www.chess.com"]
[Date "2023.12.05"]
[Round "10"]
[White "Vakhlamov, Igor L."]
[Black "Nakamura, Hikaru"]
[Result "0-1"]
[Board "14"]
[TimeControl "180+1"]
[WhiteFideId "24126748"]
[BlackFideId "2016192"]
[WhiteElo "2842"]
[BlackElo "3231"]
[WhiteTeam "RUS"]
[BlackTeam "USA"]
[WhiteClock "0:00:00"]
[BlackClock "0:00:12"]

1. e4 {[%clk 0:02:53]}  g6 {[%clk 0:03:00]} 2. d4 {[%clk 0:02:51]}  Bg7 {[%clk 0:03:01]} 3. Nc3 {[%clk 0:02:47]}  a6 {[%clk 0:03:01]} 4. Nf3 {[%clk 0:02:47]}  b5 {[%clk 0:03:01]} 5. h4 {[%clk 0:02:46]}  h6 {[%clk 0:03:00]} 6. Be3 {[%clk 0:02:44]}  Bb7 {[%clk 0:03:00]} 7. Bd3 {[%clk 0:02:43]}  d6 {[%clk 0:03:00]} 8. Qd2 {[%clk 0:02:39]}  Nd7 {[%clk 0:03:00]} 9. a4 {[%clk 0:02:34]}  b4 {[%clk 0:02:58]} 10. Ne2 {[%clk 0:02:34]}  c5 {[%clk 0:02:58]} 11. c3 {[%clk 0:02:34]}  bxc3 {[%clk 0:02:58]} 12. bxc3 {[%clk 0:02:35]}  Ngf6 {[%clk 0:02:58]} 13. Ng3 {[%clk 0:02:34]}  Ng4 {[%clk 0:02:58]} 14. h5 {[%clk 0:02:27]}  Nxe3 {[%clk 0:02:55]} 15. Qxe3 {[%clk 0:02:28]}  Qa5 {[%clk 0:02:50]} 16. O-O {[%clk 0:02:12]}  cxd4 {[%clk 0:02:08]} 17. cxd4 {[%clk 0:02:13]}  O-O {[%clk 0:02:06]} 18. Rab1 {[%clk 0:02:06]}  Bc6 {[%clk 0:02:02]} 19. hxg6 {[%clk 0:01:20]}  fxg6 {[%clk 0:02:03]} 20. e5 {[%clk 0:01:20]}  Bxf3 {[%clk 0:01:48]} 21. gxf3 {[%clk 0:01:21]}  dxe5 {[%clk 0:01:49]} 22. Bxg6 {[%clk 0:01:17]}  Rf6 {[%clk 0:01:17]} 23. Bf5 {[%clk 0:01:07]}  e6 {[%clk 0:01:13]} 24. Be4 {[%clk 0:01:04]}  Raf8 {[%clk 0:01:11]} 25. Rfd1 {[%clk 0:00:49]}  exd4 {[%clk 0:01:10]} 26. Rxd4 {[%clk 0:00:50]}  Ne5 {[%clk 0:01:09]} 27. Rdb4 {[%clk 0:00:40]}  Nxf3+ {[%clk 0:00:59]} 28. Bxf3 {[%clk 0:00:40]}  Rxf3 {[%clk 0:01:00]} 29. Qxe6+ {[%clk 0:00:40]}  Kh8 {[%clk 0:01:00]} 30. Rg4 {[%clk 0:00:27]}  Qc5 {[%clk 0:00:28]} 31. Ne4 {[%clk 0:00:21]}  Qc2 {[%clk 0:00:26]} 32. Rf1 {[%clk 0:00:05]}  R3f4 {[%clk 0:00:26]} 33. Rxf4 {[%clk 0:00:05]}  Rxf4 {[%clk 0:00:27]} 34. Ng3 {[%clk 0:00:04]}  Qxa4 {[%clk 0:00:25]} 35. Kg2 {[%clk 0:00:04]}  Rf6 {[%clk 0:00:21]} 36. Qd5 {[%clk 0:00:04]}  Qc6 {[%clk 0:00:21]} 37. Rd1 {[%clk 0:00:04]}  a5 {[%clk 0:00:20]} 38. Ne4 {[%clk 0:00:02]}  Qxd5 {[%clk 0:00:19]} 39. Rxd5 {[%clk 0:00:03]}  Ra6 {[%clk 0:00:19]} 40. Nc5 {[%clk 0:00:03]}  Ra7 {[%clk 0:00:18]} 41. Na4 {[%clk 0:00:03]}  Bf8 {[%clk 0:00:18]} 42. f4 {[%clk 0:00:03]}  Bb4 {[%clk 0:00:17]} 43. Kf3 {[%clk 0:00:04]}  Kg7 {[%clk 0:00:18]} 44. Kg4 {[%clk 0:00:04]}  Kg6 {[%clk 0:00:18]} 45. Rb5 {[%clk 0:00:03]}  Ra6 {[%clk 0:00:18]} 46. f5+ {[%clk 0:00:03]}  Kf6 {[%clk 0:00:17]} 47. Kf4 {[%clk 0:00:03]}  h5 {[%clk 0:00:16]} 48. Nb2 {[%clk 0:00:04]}  Bd6+ {[%clk 0:00:15]} 49. Kf3 {[%clk 0:00:03]}  a4 {[%clk 0:00:16]} 50. Nc4 {[%clk 0:00:02]}  Bf8 {[%clk 0:00:12]} 51. Nb6 {[%clk 0:00:02]}  a3 {[%clk 0:00:13]} 52. Nd7+ {[%clk 0:00:02]}  Kf7 {[%clk 0:00:12]} 53. Nc5 {[%clk 0:00:02]}  Bxc5 {[%clk 0:00:12]} 54. Rxc5 {[%clk 0:00:03]}  a2 {[%clk 0:00:12]} 55. Rc7+ {[%clk 0:00:04]}  Kf6 {[%clk 0:00:13]} 56. Rc6+ {[%clk 0:00:00]}  Rxc6 {[%clk 0:00:12]} 0-1

[Event "December 5 Early 2023"]
[Site "https://www.chess.com"]
[Date "2023.12.05"]
[Round "10"]
[White "Bacrot, Etienne"]
[Black "Pranav, V"]
[Result "0-1"]
[Board "15"]
[TimeControl "180+1"]
[WhiteFideId "605506"]
[BlackFideId "25060783"]
[WhiteElo "2839"]
[BlackElo "3057"]
[WhiteTeam "FRA"]
[BlackTeam "IND"]
[WhiteClock "0:00:02"]
[BlackClock "0:00:36"]

1. e4 {[%clk 0:03:00]}  e5 {[%clk 0:02:58]} 2. Nf3 {[%clk 0:03:00]}  Nc6 {[%clk 0:02:59]} 3. Bc4 {[%clk 0:02:59]}  Nf6 {[%clk 0:02:59]} 4. d3 {[%clk 0:03:00]}  h6 {[%clk 0:02:59]} 5. Nc3 {[%clk 0:02:59]}  d6 {[%clk 0:03:00]} 6. h3 {[%clk 0:02:59]}  g6 {[%clk 0:03:00]} 7. g4 {[%clk 0:02:58]}  Bg7 {[%clk 0:03:01]} 8. g5 {[%clk 0:02:59]}  Nh5 {[%clk 0:02:58]} 9. gxh6 {[%clk 0:02:51]}  Bxh6 {[%clk 0:02:59]} 10. Bxh6 {[%clk 0:02:51]}  Rxh6 {[%clk 0:03:00]} 11. Qd2 {[%clk 0:02:52]}  Rh8 {[%clk 0:02:51]} 12. O-O-O {[%clk 0:02:45]}  Be6 {[%clk 0:02:38]} 13. Nd5 {[%clk 0:02:13]}  Bxd5 {[%clk 0:02:31]} 14. exd5 {[%clk 0:02:00]}  Ne7 {[%clk 0:02:31]} 15. d4 {[%clk 0:02:00]}  e4 {[%clk 0:02:25]} 16. Ng5 {[%clk 0:02:00]}  Nf6 {[%clk 0:02:23]} 17. Rde1 {[%clk 0:01:23]}  Rh4 {[%clk 0:02:15]} 18. Ne6 {[%clk 0:00:34]}  fxe6 {[%clk 0:01:48]} 19. Qg5 {[%clk 0:00:34]}  Nf5 {[%clk 0:01:20]} 20. Qxg6+ {[%clk 0:00:34]}  Kf8 {[%clk 0:01:20]} 21. dxe6 {[%clk 0:00:32]}  Nh6 {[%clk 0:01:20]} 22. Rhg1 {[%clk 0:00:17]}  Qe7 {[%clk 0:01:03]} 23. d5 {[%clk 0:00:17]}  Nhg8 {[%clk 0:00:55]} 24. Rg5 {[%clk 0:00:13]}  Qh7 {[%clk 0:00:42]} 25. e7+ {[%clk 0:00:10]}  Kxe7 {[%clk 0:00:37]} 26. Qg7+ {[%clk 0:00:05]}  Qxg7 {[%clk 0:00:37]} 27. Rxg7+ {[%clk 0:00:06]}  Kf8 {[%clk 0:00:38]} 28. Rxc7 {[%clk 0:00:06]}  Rxh3 {[%clk 0:00:38]} 29. Rg1 {[%clk 0:00:06]}  Rh7 {[%clk 0:00:35]} 30. Rxh7 {[%clk 0:00:02]}  Nxh7 {[%clk 0:00:36]} 0-1

[Event "December 5 Early 2023"]
[Site "https://www.chess.com"]
[Date "2023.12.05"]
[Round "10"]
[White "Gharibyan, Mamikon"]
[Black "Bluebaum, Matthias"]
[Result "1/2-1/2"]
[Board "16"]
[TimeControl "180+1"]
[WhiteFideId "13308300"]
[BlackFideId "24651516"]
[WhiteElo "2824"]
[BlackElo "3026"]
[WhiteTeam "ARM"]
[BlackTeam "GER"]
[WhiteClock "0:00:09"]
[BlackClock "0:00:22"]

1. e4 {[%clk 0:03:00]}  e6 {[%clk 0:02:59]} 2. d4 {[%clk 0:02:58]}  d5 {[%clk 0:03:00]} 3. e5 {[%clk 0:02:56]}  c5 {[%clk 0:03:00]} 4. c3 {[%clk 0:02:56]}  Nc6 {[%clk 0:03:01]} 5. Nf3 {[%clk 0:02:56]}  Nge7 {[%clk 0:03:02]} 6. Na3 {[%clk 0:02:56]}  Bd7 {[%clk 0:03:02]} 7. Nc2 {[%clk 0:02:48]}  Qa5 {[%clk 0:03:00]} 8. dxc5 {[%clk 0:02:39]}  Ng6 {[%clk 0:02:59]} 9. b4 {[%clk 0:02:31]}  Qc7 {[%clk 0:02:59]} 10. a4 {[%clk 0:02:23]}  Ncxe5 {[%clk 0:02:56]} 11. a5 {[%clk 0:02:19]}  Be7 {[%clk 0:02:55]} 12. Be2 {[%clk 0:02:08]}  O-O {[%clk 0:02:55]} 13. O-O {[%clk 0:02:08]}  b6 {[%clk 0:02:50]} 14. cxb6 {[%clk 0:02:03]}  axb6 {[%clk 0:02:51]} 15. Nxe5 {[%clk 0:01:54]}  Nxe5 {[%clk 0:02:49]} 16. axb6 {[%clk 0:01:42]}  Qxb6 {[%clk 0:02:50]} 17. Be3 {[%clk 0:01:39]}  Qc7 {[%clk 0:02:50]} 18. Qd4 {[%clk 0:01:21]}  Bd6 {[%clk 0:02:33]} 19. b5 {[%clk 0:01:07]}  Rxa1 {[%clk 0:02:12]} 20. Rxa1 {[%clk 0:01:06]}  Rb8 {[%clk 0:02:13]} 21. Ra7 {[%clk 0:00:57]}  Rb7 {[%clk 0:01:50]} 22. Ra8+ {[%clk 0:00:45]}  Rb8 {[%clk 0:01:50]} 23. b6 {[%clk 0:00:34]}  Qd8 {[%clk 0:01:50]} 24. Rxb8 {[%clk 0:00:27]}  Qxb8 {[%clk 0:01:51]} 25. Nb4 {[%clk 0:00:25]}  Nc6 {[%clk 0:01:44]} 26. Nxc6 {[%clk 0:00:25]}  Bxc6 {[%clk 0:01:45]} 27. f4 {[%clk 0:00:21]}  h6 {[%clk 0:01:45]} 28. Kf2 {[%clk 0:00:21]}  Bb7 {[%clk 0:01:43]} 29. g3 {[%clk 0:00:21]}  Qc8 {[%clk 0:01:43]} 30. Qd2 {[%clk 0:00:18]}  e5 {[%clk 0:01:42]} 31. fxe5 {[%clk 0:00:16]}  Bxe5 {[%clk 0:01:42]} 32. Bd4 {[%clk 0:00:16]}  Bd6 {[%clk 0:01:40]} 33. Bf3 {[%clk 0:00:15]}  Qh3 {[%clk 0:01:40]} 34. Kg1 {[%clk 0:00:15]}  Ba6 {[%clk 0:01:36]} 35. Qe1 {[%clk 0:00:15]}  Qf5 {[%clk 0:01:34]} 36. Be2 {[%clk 0:00:09]}  Qe4 {[%clk 0:01:29]} 37. Kf2 {[%clk 0:00:09]}  Qc2 {[%clk 0:01:25]} 38. Kf1 {[%clk 0:00:05]}  Bc8 {[%clk 0:01:24]} 39. Kg1 {[%clk 0:00:05]}  Qe4 {[%clk 0:01:23]} 40. Kf2 {[%clk 0:00:04]}  Bh3 {[%clk 0:01:20]} 41. Bf3 {[%clk 0:00:04]}  Qc2+ {[%clk 0:01:20]} 42. Qe2 {[%clk 0:00:05]}  Qb1 {[%clk 0:01:20]} 43. Bxd5 {[%clk 0:00:04]}  Bd7 {[%clk 0:01:05]} 44. Bf3 {[%clk 0:00:04]}  Bb5 {[%clk 0:00:59]} 45. c4 {[%clk 0:00:04]}  Bd7 {[%clk 0:00:53]} 46. Kg2 {[%clk 0:00:04]}  Qf5 {[%clk 0:00:51]} 47. Qf2 {[%clk 0:00:02]}  h5 {[%clk 0:00:50]} 48. c5 {[%clk 0:00:02]}  h4 {[%clk 0:00:37]} 49. c6 {[%clk 0:00:02]}  h3+ {[%clk 0:00:38]} 50. Kg1 {[%clk 0:00:02]}  Be6 {[%clk 0:00:37]} 51. Qf1 {[%clk 0:00:02]}  Bc5 {[%clk 0:00:34]} 52. Bxc5 {[%clk 0:00:02]}  Qxc5+ {[%clk 0:00:35]} 53. Kh1 {[%clk 0:00:02]}  Qxb6 {[%clk 0:00:33]} 54. g4 {[%clk 0:00:03]}  Qe3 {[%clk 0:00:22]} 55. c7 {[%clk 0:00:03]}  Qc3 {[%clk 0:00:22]} 56. Qxh3 {[%clk 0:00:02]}  Qc1+ {[%clk 0:00:22]} 57. Kg2 {[%clk 0:00:02]}  Qxc7 {[%clk 0:00:22]} 58. Qg3 {[%clk 0:00:02]}  Qc2+ {[%clk 0:00:22]} 59. Qf2 {[%clk 0:00:03]}  Qc3 {[%clk 0:00:23]} 60. h3 {[%clk 0:00:03]}  g6 {[%clk 0:00:23]} 61. Qg3 {[%clk 0:00:04]}  Qb2+ {[%clk 0:00:23]} 62. Qf2 {[%clk 0:00:04]}  Qf6 {[%clk 0:00:23]} 63. h4 {[%clk 0:00:05]}  Qf4 {[%clk 0:00:22]} 64. Qg3 {[%clk 0:00:05]}  Qd4 {[%clk 0:00:22]} 65. Qf2 {[%clk 0:00:06]}  Qc4 {[%clk 0:00:20]} 66. Qg3 {[%clk 0:00:06]}  Kh7 {[%clk 0:00:21]} 67. g5 {[%clk 0:00:07]}  Qc2+ {[%clk 0:00:19]} 68. Qf2 {[%clk 0:00:07]}  Qf5 {[%clk 0:00:19]} 69. Qg3 {[%clk 0:00:08]}  Qb5 {[%clk 0:00:19]} 70. Qf2 {[%clk 0:00:08]}  Qe5 {[%clk 0:00:19]} 71. Qg3 {[%clk 0:00:08]}  Qd4 {[%clk 0:00:19]} 72. Qf2 {[%clk 0:00:08]}  Qb4 {[%clk 0:00:19]} 73. Qg3 {[%clk 0:00:09]}  Qd2+ {[%clk 0:00:15]} 74. Qf2 {[%clk 0:00:09]}  Qd3 {[%clk 0:00:16]} 75. Qg3 {[%clk 0:00:09]}  Bf5 {[%clk 0:00:16]} 76. Qf2 {[%clk 0:00:08]}  Qc4 {[%clk 0:00:17]} 77. Qg3 {[%clk 0:00:08]}  Qa4 {[%clk 0:00:16]} 78. Qf2 {[%clk 0:00:08]}  Qd7 {[%clk 0:00:16]} 79. Qg3 {[%clk 0:00:08]}  Qe6 {[%clk 0:00:17]} 80. Qf2 {[%clk 0:00:08]}  Bh3+ {[%clk 0:00:18]} 81. Kh2 {[%clk 0:00:09]}  Bf5 {[%clk 0:00:18]} 82. Kg2 {[%clk 0:00:09]}  Qe5 {[%clk 0:00:18]} 83. Qg3 {[%clk 0:00:09]}  Qd4 {[%clk 0:00:19]} 84. Qf2 {[%clk 0:00:10]}  Qb4 {[%clk 0:00:19]} 85. Qg3 {[%clk 0:00:10]}  Be4 {[%clk 0:00:20]} 86. Bxe4 {[%clk 0:00:10]}  Qxe4+ {[%clk 0:00:21]} 87. Kh2 {[%clk 0:00:11]}  Qe2+ {[%clk 0:00:21]} 88. Kg1 {[%clk 0:00:09]}  Qd1+ {[%clk 0:00:20]} 89. Kf2 {[%clk 0:00:09]}  Qc2+ {[%clk 0:00:21]} 90. Kf1 {[%clk 0:00:09]}  Qb1+ {[%clk 0:00:20]} 91. Kg2 {[%clk 0:00:09]}  Kg8 {[%clk 0:00:20]} 92. Qf4 {[%clk 0:00:09]}  Qc2+ {[%clk 0:00:20]} 93. Kg3 {[%clk 0:00:09]}  Qd3+ {[%clk 0:00:21]} 94. Kg2 {[%clk 0:00:09]}  Qe2+ {[%clk 0:00:21]} 95. Kg3 {[%clk 0:00:09]}  Qe1+ {[%clk 0:00:21]} 96. Kg2 {[%clk 0:00:10]}  Qb1 {[%clk 0:00:21]} 97. Kg3 {[%clk 0:00:10]}  Qg1+ {[%clk 0:00:21]} 98. Kh3 {[%clk 0:00:09]}  Qh1+ {[%clk 0:00:22]} 99. Kg3 {[%clk 0:00:10]}  Qa8 {[%clk 0:00:21]} 100. Kh2 {[%clk 0:00:09]}  Qa2+ {[%clk 0:00:21]} 101. Kg3 {[%clk 0:00:09]}  Qb2 {[%clk 0:00:21]} 102. Kf3 {[%clk 0:00:07]}  Qc3+ {[%clk 0:00:20]} 103. Kg2 {[%clk 0:00:07]}  Qb2+ {[%clk 0:00:20]} 104. Kg3 {[%clk 0:00:07]}  Qc3+ {[%clk 0:00:21]} 105. Kg2 {[%clk 0:00:08]}  Qb2+ {[%clk 0:00:21]} 106. Kg3 {[%clk 0:00:08]}  Qc3+ {[%clk 0:00:22]} 107. Kg2 {[%clk 0:00:09]} 1/2-1/2